[Event "LJ Slovak Open 2022"]
[Site "Liptovsky Jan"]
[Date "2022.06.23"]
[Round "1.27"]
[White "Hlavac, Tomas"]
[Black "Gajdosik, Marian"]
[Result "0-1"]
[ECO "C41"]
[WhiteElo "1409"]
[BlackElo "1902"]
[Annotator "NA RC"]
[PlyCount "112"]
[EventDate "2022.06.23"]
[EventType "swiss"]
[EventCountry "SVK"]
[SourceTitle "playchess.com"]
[Source "ChessBase"]
[SourceQuality "1"]
[TimeControl "3600+30"]

1. e4 {[%emt 0:00:12]} e5 {[%emt 0:00:05]} 2. Nf3 {[%emt 0:00:12]} d6 {[%emt 0:00:03]} 3. h3 {[%emt 0:00:14]} Qf6 {[%emt 0:00:57]} 4. Bc4 {[%emt 0:00:37]} h6 {[%emt 0:00:55]} 5. c3 {[%emt 0:00:25]} Ne7 {[%emt 0:00:12]} 6. d3 {[%emt 0:01:06]} Ng6 {[%emt 0:00:08]} 7. Be3 {[%emt 0:02:00]} Nf4 {[%emt 0:00:08]} 8. Bxf4 {[%emt 0:00:09]} Qxf4 {[%emt 0:00:25]} 9. Nbd2 {[%emt 0:00:58]} Be7 {[%emt 0:00:28]} 10. Nf1 {[%emt 0:02:27]} c6 {[%emt 0:01:09]} 11. Ng3 {[%emt 0:00:35]} g6 {[%emt 0:00:09]} 12. Ne2 {[%emt 0:01:00]} Qf6 {[%emt 0:00:08]} 13. Qd2 {[%emt 0:00:58]} Nd7 {[%emt 0:01:32]} 14. d4 {[%emt 0:04:42]} Nb6 {[%emt 0:03:36]} 15. Bb3 {[%emt 0:01:27]} a5 {[%emt 0:00:09]} 16. dxe5 {[%emt 0:03:20]} dxe5 {[%emt 0:00:11]} 17. Qe3 {[%emt 0:01:31]} Nd7 {[%emt 0:00:20]} 18. O-O {[%emt 0:01:27]} Nc5 {[%emt 0:00:21]} 19. Bc2 {[%emt 0:00:13]} Be6 {[%emt 0:00:21]} 20. b4 {[%emt 0:01:56]} axb4 {[%emt 0:01:32]} 21. cxb4 {[%emt 0:00:14]} Nd7 {[%emt 0:00:08]} 22. a4 {[%emt 0:00:39]} Kf8 {[%emt 0:03:43]} 23. Rfb1 {[%emt 0:01:44]} Kg7 {[%emt 0:00:19]} 24. Nc1 {[%emt 0:01:05]} Qf4 {[%emt 0:01:13]} 25. Qc3 {[%emt 0:02:26]} Qf6 {[%emt 0:00:33]} 26. Qe3 {[%emt 0:01:33]} Rhc8 {[%emt 0:01:30]} 27. Nd3 {[%emt 0:00:41]} Bc4 {[%emt 0:01:26]} 28. Nh2 {[%emt 0:02:19]} h5 {[%emt 0:01:29]} 29. Nf3 {[%emt 0:00:29]} b6 {[%emt 0:02:12]} 30. Nb2 {[%emt 0:01:15]} Be6 {[%emt 0:00:26]} 31. h4 {[%emt 0:02:53]} Bxb4 {[%emt 0:01:24]} 32. Nd3 {[%emt 0:05:25]} Ba5 {[%emt 0:03:09]} 33. Ng5 {[%emt 0:00:39]} Nf8 {[%emt 0:01:38]} 34. f4 {[%emt 0:01:16]} exf4 {[%emt 0:02:07]} 35. Nxf4 {[%emt 0:00:13]} Bc3 {[%emt 0:02:27]} 36. Nfxe6+ {[%emt 0:02:41]} Nxe6 {[%emt 0:01:21]} 37. Rf1 {[%emt 0:00:30]} Bd4 {[%emt 0:00:30]} 38. Rxf6 {[%emt 0:02:34]} Bxe3+ {[%emt 0:00:10]} 39. Kh1 {[%emt 0:00:17]} Kxf6 {[%emt 0:01:19]} 40. Rf1+ {[%emt 0:00:12]} Ke5 {[%emt 0:00:52]} 41. Nxf7+ {[%emt 0:00:12]} Kd4 {[%emt 0:00:57]} 42. Rd1+ {[%emt 0:00:57]} Kc3 {[%emt 0:01:00]} 43. Bb1 {[%emt 0:00:58]} Bf4 {[%emt 0:01:04]} 44. Ba2 {[%emt 0:00:53]} Nc5 {[%emt 0:02:01]} 45. Rf1 {[%emt 0:00:43]} Bc7 {[%emt 0:00:28]} 46. e5 {[%emt 0:00:21]} Rxa4 {[%emt 0:00:41]} 47. Rf3+ {[%emt 0:01:10]} Kd2 {[%emt 0:00:22]} 48. Rf2+ {[%emt 0:01:31]} Ke3 {[%emt 0:00:08]} 49. Kg1 {[%emt 0:00:43]} Rca8 {[%emt 0:01:05]} 50. Rf3+ {[%emt 0:02:07]} Kd2 {[%emt 0:00:10]} 51. Rf2+ {[%emt 0:00:09]} Kc3 {[%emt 0:00:07]} 52. Rf3+ {[%emt 0:00:16]} Kb4 {[%emt 0:00:10]} 53. Rf4+ {[%emt 0:01:01]} Kb5 {[%emt 0:00:22]} 54. Rxa4 {[%emt 0:01:20]} Rxa4 {[%emt 0:00:12]} 55. e6 {[%emt 0:00:17]} Rxa2 {[%emt 0:00:30]} 56. e7 {[%emt 0:00:08]} Ra8 {[%emt 0:00:08]} 0-1

[Event "LJ Slovak Open 2022"]
[Site "Liptovsky Jan"]
[Date "2022.06.23"]
[Round "1.28"]
[White "Rucek, Peter"]
[Black "Muller, Martin"]
[Result "1-0"]
[ECO "A58"]
[WhiteElo "1899"]
[BlackElo "1476"]
[Annotator "NA RC"]
[PlyCount "87"]
[EventDate "2022.06.23"]
[EventType "swiss"]
[EventCountry "SVK"]
[SourceTitle "playchess.com"]
[Source "ChessBase"]
[SourceQuality "1"]
[TimeControl "3600+30"]

1. d4 {[%emt 0:00:03]} Nf6 {[%emt 0:00:43]} 2. c4 {[%emt 0:00:06]} c5 {[%emt 0:00:30]} 3. d5 {[%emt 0:00:05]} b5 {[%emt 0:01:43]} 4. cxb5 {[%emt 0:00:05]} a6 {[%emt 0:00:23]} 5. bxa6 {[%emt 0:00:05]} g6 {[%emt 0:00:20]} 6. Nc3 {[%emt 0:00:05]} Bg7 {[%emt 0:00:11]} 7. e4 {[%emt 0:00:22]} O-O {[%emt 0:01:49]} 8. Nf3 {[%emt 0:00:45]} Qa5 {[%emt 0:01:34]} 9. a7 {[%emt 0:03:35]} Nxe4 {[%emt 0:02:56]} 10. axb8=Q {[%emt 0:08:08]} Rxb8 {[%emt 0:00:02]} 11. Bd2 {[%emt 0:03:05]} Nxc3 {[%emt 0:01:23]} 12. bxc3 {[%emt 0:01:23]} Bxc3 {[%emt 0:00:12]} 13. Rc1 {[%emt 0:00:54]} Bxd2+ {[%emt 0:00:47]} 14. Qxd2 {[%emt 0:00:11]} Qxd2+ {[%emt 0:02:58]} 15. Nxd2 {[%emt 0:00:56]} d6 {[%emt 0:00:20]} 16. Bc4 {[%emt 0:00:46]} Bf5 {[%emt 0:00:59]} 17. O-O {[%emt 0:00:22]} Rb2 {[%emt 0:00:12]} 18. Rfd1 {[%emt 0:07:46]} Bc2 {[%emt 0:02:21]} 19. Re1 {[%emt 0:00:21]} Re8 {[%emt 0:00:03]} 20. Nf1 {[%emt 0:00:40]} Ba4 {[%emt 0:00:50]} 21. Rb1 {[%emt 0:04:13]} Rc2 {[%emt 0:05:10]} 22. Ne3 {[%emt 0:00:20]} Rc3 {[%emt 0:01:16]} 23. Rb7 {[%emt 0:05:17]} Kf8 {[%emt 0:02:55]} 24. Reb1 {[%emt 0:03:30]} f5 {[%emt 0:02:31]} 25. g3 {[%emt 0:03:31]} Ra8 {[%emt 0:04:28]} 26. Rb8+ {[%emt 0:06:36]} Rxb8 {[%emt 0:00:21]} 27. Rxb8+ {[%emt 0:00:02]} Kf7 {[%emt 0:00:53]} 28. Bb5 {[%emt 0:02:37]} Bxb5 {[%emt 0:04:12]} 29. Rxb5 {[%emt 0:00:02]} Ra3 {[%emt 0:00:13]} 30. Rb2 {[%emt 0:00:45]} Kf6 {[%emt 0:00:18]} 31. Kf1 {[%emt 0:02:19]} Ra4 {[%emt 0:04:01]} 32. Ke2 {[%emt 0:00:24]} g5 {[%emt 0:01:14]} 33. f3 {[%emt 0:04:45]} Ke5 {[%emt 0:00:28]} 34. Rd2 {[%emt 0:03:43]} h5 {[%emt 0:05:29]} 35. Nd1 {[%emt 0:01:14]} Ra3 {[%emt 0:03:47]} 36. Nb2 {[%emt 0:01:10]} Rc3 {[%emt 0:02:10]} 37. a4 {[%emt 0:00:58]} e6 {[%emt 0:01:06]} 38. a5 {[%emt 0:03:34]} exd5 {[%emt 0:00:13]} 39. Nd3+ {[%emt 0:00:12]} Ke6 {[%emt 0:01:47]} 40. Ra2 {[%emt 0:00:19]} Rb3 {[%emt 0:00:29]} 41. a6 {[%emt 0:00:19]} Rb8 {[%emt 0:00:10]} 42. Nb2 {[%emt 0:00:55]} Ra8 {[%emt 0:00:27]} 43. Na4 {[%emt 0:00:51]} Kd7 {[%emt 0:00:22]} 44. Nb6+ {[%emt 0:00:02]} 1-0

[Event "LJ Slovak Open 2022"]
[Site "Liptovsky Jan"]
[Date "2022.06.23"]
[Round "1.29"]
[White "Stefanides, Karol"]
[Black "Goga, Frantisek"]
[Result "0-1"]
[ECO "A49"]
[WhiteElo "1438"]
[BlackElo "1900"]
[Annotator "NA RC"]
[PlyCount "65"]
[EventDate "2022.06.23"]
[EventType "swiss"]
[EventCountry "SVK"]
[SourceTitle "playchess.com"]
[Source "ChessBase"]
[SourceQuality "1"]
[TimeControl "3600+30"]

1. d4 {[%emt 0:01:01]} Nf6 {[%emt 0:00:07]} 2. Nf3 {[%emt 0:00:10]} g6 {[%emt 0:00:11]} 3. g3 {[%emt 0:00:25]} Bg7 {[%emt 0:00:19]} 4. Bg2 {[%emt 0:00:09]} O-O {[%emt 0:00:40]} 5. O-O {[%emt 0:00:08]} d6 {[%emt 0:00:22]} 6. c3 {[%emt 0:00:40]} c6 {[%emt 0:01:08]} 7. Nbd2 {[%emt 0:00:44]} Bf5 {[%emt 0:02:04]} 8. Nh4 {[%emt 0:02:15]} Bd7 {[%emt 0:00:30]} 9. f4 {[%emt 0:04:01]} Qc8 {[%emt 0:06:09]} 10. Nhf3 {[%emt 0:01:22]} Na6 {[%emt 0:02:32]} 11. Re1 {[%emt 0:01:53]} c5 {[%emt 0:04:02]} 12. e3 {[%emt 0:01:44]} Re8 {[%emt 0:01:25]} 13. e4 {[%emt 0:02:08]} cxd4 {[%emt 0:01:03]} 14. Nxd4 {[%emt 0:02:22]} Qc5 {[%emt 0:01:11]} 15. N2b3 {[%emt 0:01:55]} Qb6 {[%emt 0:00:30]} 16. Kh1 {[%emt 0:00:59]} e5 {[%emt 0:04:12]} 17. fxe5 {[%emt 0:01:09]} dxe5 {[%emt 0:00:05]} 18. Nf3 {[%emt 0:01:28]} Ng4 {[%emt 0:03:58]} 19. Qc2 {[%emt 0:04:09]} Nf2+ {[%emt 0:06:33]} 20. Kg1 {[%emt 0:00:14]} Nd3+ {[%emt 0:00:16]} 21. Kh1 {[%emt 0:06:07]} Nxe1 {[%emt 0:04:30]} 22. Nxe1 {[%emt 0:00:16]} Rac8 {[%emt 0:00:08]} 23. Nf3 {[%emt 0:01:50]} Ba4 {[%emt 0:01:34]} 24. Qe2 {[%emt 0:03:31]} Bb5 {[%emt 0:02:48]} 25. Qe3 {[%emt 0:00:49]} Qxe3 {[%emt 0:00:44]} 26. Bxe3 {[%emt 0:02:41]} b6 {[%emt 0:00:31]} 27. h3 {[%emt 0:00:30]} Rcd8 {[%emt 0:00:25]} 28. Nbd2 {[%emt 0:02:40]} Bc6 {[%emt 0:04:41]} 29. b3 {[%emt 0:01:35]} Nc5 {[%emt 0:01:38]} 30. Ng1 {[%emt 0:05:40]} Rd3 {[%emt 0:01:57]} 31. Nf1 {[%emt 0:01:18]} Bxe4 {[%emt 0:00:40]} 32. Bxe4 {[%emt 0:00:38]} Nxe4 {[%emt 0:00:05]} 33. c4 {[%emt 0:02:17]} 0-1

[Event "LJ Slovak Open 2022"]
[Site "Liptovsky Jan"]
[Date "2022.06.23"]
[Round "1.30"]
[White "Smusz, Kamil"]
[Black "Ihnat, Marek"]
[Result "1-0"]
[ECO "D00"]
[WhiteElo "1881"]
[BlackElo "2045"]
[Annotator "NA RC"]
[PlyCount "21"]
[EventDate "2022.06.23"]
[EventType "swiss"]
[EventCountry "SVK"]
[SourceTitle "playchess.com"]
[Source "ChessBase"]
[SourceQuality "1"]
[TimeControl "3600+30"]

1. d4 {[%emt 0:00:23]} d5 {[%emt 0:00:30]} 2. Bf4 {[%emt 0:00:30]} f5 {[%emt 0:00:02]} 3. e3 {[%emt 0:00:47]} e6 {[%emt 0:00:08]} 4. g4 {[%emt 1:00:50]} fxg4 {[%emt 1:01:50]} 5. Qxg4 {[%emt 0:00:30]} Nf6 {[%emt 0:00:30]} 6. Qg2 {[%emt 0:00:30]} g6 {[%emt 0:00:30]} 7. Bd3 {[%emt 0:00:30]} Be7 {[%emt 0:00:30]} 8. Nf3 {[%emt 0:00:30]} Nbd7 {[%emt 0:00:30]} 9. Bxg6+ {[%emt 0:00:30]} hxg6 {[%emt 0:00:30]} 10. Qxg6+ {[%emt 0:00:30]} Kf8 {[%emt 0:00:30]} 11. Ng5 {[%emt 0:00:30]} 1-0

[Event "LJ Slovak Open 2022"]
[Site "Liptovsky Jan"]
[Date "2022.06.23"]
[Round "1.31"]
[White "Zelenka, Matej"]
[Black "Rak, Martin"]
[Result "0-1"]
[ECO "B90"]
[WhiteElo "1400"]
[BlackElo "1849"]
[Annotator "NA RC"]
[PlyCount "82"]
[EventDate "2022.06.23"]
[EventType "swiss"]
[EventCountry "SVK"]
[SourceTitle "playchess.com"]
[Source "ChessBase"]
[SourceQuality "1"]
[TimeControl "3600+30"]

1. e4 {[%emt 0:00:08]} c5 {[%emt 0:00:08]} 2. Nf3 {[%emt 0:00:05]} d6 {[%emt 0:00:05]} 3. d4 {[%emt 0:00:01]} cxd4 {[%emt 0:00:05]} 4. Nxd4 {[%emt 0:00:07]} Nf6 {[%emt 0:00:01]} 5. Nc3 {[%emt 0:00:10]} a6 {[%emt 0:00:08]} 6. Bd3 {[%emt 0:00:49]} e5 {[%emt 0:00:11]} 7. Nb3 {[%emt 0:00:09]} Be7 {[%emt 0:00:47]} 8. O-O {[%emt 0:02:00]} O-O {[%emt 0:00:30]} 9. Be3 {[%emt 0:00:30]} Be6 {[%emt 0:03:04]} 10. Kh1 {[%emt 0:00:37]} Nbd7 {[%emt 0:00:42]} 11. Nd5 {[%emt 0:00:58]} Bxd5 {[%emt 0:08:10]} 12. exd5 {[%emt 0:00:20]} Ne8 {[%emt 0:06:38]} 13. c4 {[%emt 0:02:41]} f5 {[%emt 0:01:24]} 14. f3 {[%emt 0:04:19]} Bg5 {[%emt 0:02:56]} 15. Bxg5 {[%emt 0:00:49]} Qxg5 {[%emt 0:01:55]} 16. Qc1 {[%emt 0:10:15]} Qh5 {[%emt 0:02:34]} 17. Qc2 {[%emt 0:05:11]} f4 {[%emt 0:05:12]} 18. Kg1 {[%emt 0:01:19]} Rc8 {[%emt 0:04:23]} 19. Kf2 {[%emt 0:03:16]} Qxh2 {[%emt 0:04:39]} 20. Rh1 {[%emt 0:00:22]} Qg3+ {[%emt 0:00:04]} 21. Kf1 {[%emt 0:00:06]} h6 {[%emt 0:00:08]} 22. Bf5 {[%emt 0:00:50]} Nef6 {[%emt 0:02:05]} 23. Rh3 {[%emt 0:01:16]} Qg5 {[%emt 0:00:22]} 24. Kf2 {[%emt 0:03:13]} Kh8 {[%emt 0:04:44]} 25. Rah1 {[%emt 0:00:50]} b5 {[%emt 0:02:00]} 26. Nd2 {[%emt 0:02:53]} Rc7 {[%emt 0:02:01]} 27. Bxd7 {[%emt 0:00:13]} Rxd7 {[%emt 0:00:23]} 28. Ne4 {[%emt 0:00:34]} Nxe4+ {[%emt 0:00:10]} 29. Qxe4 {[%emt 0:00:05]} Rc7 {[%emt 0:01:31]} 30. b3 {[%emt 0:00:10]} Rfc8 {[%emt 0:01:54]} 31. Rh5 {[%emt 0:00:08]} Qf6 {[%emt 0:00:09]} 32. Rf5 {[%emt 0:00:12]} Qe7 {[%emt 0:00:45]} 33. Rfh5 {[%emt 0:00:18]} Qf7 {[%emt 0:00:27]} 34. Rf5 {[%emt 0:00:56]} Qg8 {[%emt 0:00:26]} 35. Rfh5 {[%emt 0:00:53]} Qh7 {[%emt 0:00:31]} 36. Rf5 {[%emt 0:05:25]} bxc4 {[%emt 0:01:57]} 37. bxc4 {[%emt 0:00:09]} Rxc4 {[%emt 0:01:58]} 38. Rf8+ {[%emt 0:01:16]} Rxf8 {[%emt 0:00:30]} 39. Qxc4 {[%emt 0:00:38]} Rb8 {[%emt 0:00:10]} 40. Re1 {[%emt 0:01:34]} Qg6 {[%emt 0:01:22]} 41. Re2 {[%emt 0:01:07]} Qg3+ {[%emt 0:00:10]} 0-1

[Event "LJ Slovak Open 2022"]
[Site "Liptovsky Jan"]
[Date "2022.06.23"]
[Round "1.32"]
[White "Janik, Marek Tobias"]
[Black "Bodnar, Frantisek"]
[Result "1-0"]
[ECO "A17"]
[WhiteElo "1840"]
[BlackElo "1379"]
[Annotator "NA RC"]
[PlyCount "68"]
[EventDate "2022.06.23"]
[EventType "swiss"]
[EventCountry "SVK"]
[SourceTitle "playchess.com"]
[Source "ChessBase"]
[SourceQuality "1"]
[TimeControl "3600+30"]

1. c4 {[%emt 0:00:09]} Nf6 {[%emt 0:01:21]} 2. Nc3 {[%emt 0:00:05]} e6 {[%emt 0:00:37]} 3. g3 {[%emt 0:00:11]} Bc5 {[%emt 0:03:23]} 4. Bg2 {[%emt 0:00:30]} Nc6 {[%emt 0:00:30]} 5. e3 {[%emt 0:00:31]} Ne5 {[%emt 0:01:04]} 6. d4 {[%emt 0:00:24]} Bb4 {[%emt 0:01:26]} 7. dxe5 {[%emt 0:00:08]} Bxc3+ {[%emt 0:00:26]} 8. bxc3 {[%emt 0:00:06]} Ng8 {[%emt 0:00:27]} 9. Rb1 {[%emt 0:01:04]} Rb8 {[%emt 0:00:12]} 10. Ne2 {[%emt 0:00:22]} Ne7 {[%emt 0:01:18]} 11. O-O {[%emt 0:01:41]} b6 {[%emt 0:00:20]} 12. Nd4 {[%emt 0:01:03]} Ng6 {[%emt 0:02:52]} 13. f4 {[%emt 0:00:11]} O-O {[%emt 0:00:31]} 14. h4 {[%emt 0:01:56]} c5 {[%emt 0:04:09]} 15. Nb5 {[%emt 0:00:41]} a6 {[%emt 0:00:16]} 16. Nd6 {[%emt 0:00:08]} Ne7 {[%emt 0:01:38]} 17. g4 {[%emt 0:02:03]} f5 {[%emt 0:02:00]} 18. exf6 {[%emt 0:00:11]} Ng6 {[%emt 0:00:36]} 19. h5 {[%emt 0:01:23]} Nh4 {[%emt 0:01:13]} 20. fxg7 {[%emt 0:01:40]} Kxg7 {[%emt 0:01:32]} 21. Be4 {[%emt 0:01:39]} Qf6 {[%emt 0:01:59]} 22. h6+ {[%emt 0:02:29]} Qxh6 {[%emt 0:02:57]} 23. g5 {[%emt 0:00:06]} Nf3+ {[%emt 0:01:40]} 24. Qxf3 {[%emt 0:00:07]} Qh4 {[%emt 0:00:14]} 25. Rb2 {[%emt 0:00:18]} h5 {[%emt 0:02:29]} 26. Rh2 {[%emt 0:01:07]} Qg4+ {[%emt 0:00:33]} 27. Qxg4 {[%emt 0:00:05]} hxg4 {[%emt 0:00:17]} 28. Rh7+ {[%emt 0:00:04]} Kg8 {[%emt 0:00:21]} 29. g6 {[%emt 0:01:04]} Rf6 {[%emt 0:00:32]} 30. g7 {[%emt 0:00:29]} e5 {[%emt 0:00:23]} 31. Ne8 {[%emt 0:00:19]} Re6 {[%emt 0:00:42]} 32. Rh8+ {[%emt 0:00:09]} Kf7 {[%emt 0:00:48]} 33. g8=Q+ {[%emt 0:00:07]} Ke7 {[%emt 0:00:34]} 34. Qg5+ {[%emt 0:00:06]} Kf7 {[%emt 0:00:31]} 1-0

[Event "LJ Slovak Open 2022"]
[Site "Liptovsky Jan"]
[Date "2022.06.23"]
[Round "1.33"]
[White "Vojtko, Imrich"]
[Black "Mydliar, Jan"]
[Result "0-1"]
[ECO "A06"]
[WhiteElo "1382"]
[BlackElo "1885"]
[Annotator "NA RC"]
[PlyCount "70"]
[EventDate "2022.06.23"]
[EventType "swiss"]
[EventCountry "SVK"]
[SourceTitle "playchess.com"]
[Source "ChessBase"]
[SourceQuality "1"]
[TimeControl "3600+30"]

1. Nf3 {[%emt 0:00:17]} Nf6 {[%emt 0:00:09]} 2. b3 {[%emt 0:00:50]} g6 {[%emt 0:00:53]} 3. Bb2 {[%emt 0:00:11]} Bg7 {[%emt 0:00:13]} 4. e3 {[%emt 0:00:14]} d5 {[%emt 0:01:02]} 5. h3 {[%emt 0:00:54]} O-O {[%emt 0:02:14]} 6. Be2 {[%emt 0:00:57]} c5 {[%emt 0:01:25]} 7. O-O {[%emt 0:00:31]} Nc6 {[%emt 0:00:44]} 8. d4 {[%emt 0:01:07]} Ne4 {[%emt 0:03:54]} 9. Nbd2 {[%emt 0:00:37]} Nxd2 {[%emt 0:04:08]} 10. Qxd2 {[%emt 0:00:11]} b6 {[%emt 0:01:44]} 11. Rab1 {[%emt 0:00:34]} cxd4 {[%emt 0:04:35]} 12. exd4 {[%emt 0:01:15]} Qd6 {[%emt 0:03:39]} 13. c3 {[%emt 0:01:36]} Bf5 {[%emt 0:01:50]} 14. Bd3 {[%emt 0:00:24]} Bxd3 {[%emt 0:00:53]} 15. Qxd3 {[%emt 0:00:08]} Rac8 {[%emt 0:04:26]} 16. Rfe1 {[%emt 0:00:11]} e6 {[%emt 0:01:17]} 17. h4 {[%emt 0:02:56]} Rfe8 {[%emt 0:02:40]} 18. Re2 {[%emt 0:00:49]} Nb8 {[%emt 0:05:03]} 19. Rbe1 {[%emt 0:00:28]} Nd7 {[%emt 0:00:26]} 20. Qd2 {[%emt 0:02:06]} Rc7 {[%emt 0:03:18]} 21. Ne5 {[%emt 0:00:54]} Nxe5 {[%emt 0:01:45]} 22. dxe5 {[%emt 0:00:13]} Qe7 {[%emt 0:01:17]} 23. Qf4 {[%emt 0:00:26]} Rec8 {[%emt 0:01:53]} 24. g3 {[%emt 0:01:00]} Qf8 {[%emt 0:00:43]} 25. Rc1 {[%emt 0:00:58]} Bh6 {[%emt 0:00:39]} 26. Qxh6 {[%emt 0:06:10]} Qxh6 {[%emt 0:00:11]} 27. Rec2 {[%emt 0:00:14]} b5 {[%emt 0:00:36]} 28. f4 {[%emt 0:00:12]} Qf8 {[%emt 0:00:19]} 29. Kg2 {[%emt 0:00:32]} b4 {[%emt 0:00:25]} 30. c4 {[%emt 0:00:10]} dxc4 {[%emt 0:00:09]} 31. bxc4 {[%emt 0:00:13]} Qd8 {[%emt 0:00:42]} 32. c5 {[%emt 0:00:46]} Qd5+ {[%emt 0:00:16]} 33. Kh2 {[%emt 0:00:30]} Rxc5 {[%emt 0:00:15]} 34. Rxc5 {[%emt 0:00:21]} Rxc5 {[%emt 0:00:03]} 35. Rxc5 {[%emt 0:00:19]} Qxc5 {[%emt 0:00:09]} 0-1

[Event "LJ Slovak Open 2022"]
[Site "Liptovsky Jan"]
[Date "2022.06.23"]
[Round "1.34"]
[White "Ziaran, Viliam"]
[Black "Polacok, Jozef"]
[Result "1/2-1/2"]
[ECO "B11"]
[WhiteElo "1832"]
[BlackElo "1386"]
[Annotator "NA RC"]
[PlyCount "103"]
[EventDate "2022.06.23"]
[EventType "swiss"]
[EventCountry "SVK"]
[SourceTitle "playchess.com"]
[Source "ChessBase"]
[SourceQuality "1"]
[TimeControl "3600+30"]

1. e4 {[%emt 0:00:18]} c6 {[%emt 0:00:10]} 2. Nc3 {[%emt 0:00:11]} d5 {[%emt 0:00:42]} 3. Nf3 {[%emt 0:00:08]} Bg4 {[%emt 0:00:46]} 4. h3 {[%emt 0:01:30]} Bxf3 {[%emt 0:01:26]} 5. Qxf3 {[%emt 0:00:07]} Nf6 {[%emt 0:01:06]} 6. e5 {[%emt 0:02:10]} Nfd7 {[%emt 0:00:44]} 7. d4 {[%emt 0:00:34]} e6 {[%emt 0:00:57]} 8. Qg3 {[%emt 0:02:11]} g6 {[%emt 0:04:04]} 9. Be2 {[%emt 0:00:56]} Bg7 {[%emt 0:01:53]} 10. O-O {[%emt 0:02:37]} O-O {[%emt 0:01:21]} 11. Be3 {[%emt 0:06:10]} c5 {[%emt 0:01:48]} 12. f4 {[%emt 0:01:14]} cxd4 {[%emt 0:01:54]} 13. Bxd4 {[%emt 0:00:14]} Nc6 {[%emt 0:00:25]} 14. Qf2 {[%emt 0:02:53]} a6 {[%emt 0:02:05]} 15. Rad1 {[%emt 0:02:57]} b5 {[%emt 0:01:21]} 16. Bf3 {[%emt 0:04:28]} Rc8 {[%emt 0:04:02]} 17. a3 {[%emt 0:04:35]} Bh6 {[%emt 0:01:24]} 18. g3 {[%emt 0:02:15]} Bg7 {[%emt 0:01:00]} 19. Ne2 {[%emt 0:00:20]} Ne7 {[%emt 0:01:27]} 20. Bc3 {[%emt 0:01:56]} Nc6 {[%emt 0:03:20]} 21. Kg2 {[%emt 0:01:33]} Qc7 {[%emt 0:05:29]} 22. g4 {[%emt 0:01:34]} Qa7 {[%emt 0:01:42]} 23. Bd4 {[%emt 0:01:50]} Qc7 {[%emt 0:01:24]} 24. c3 {[%emt 0:02:21]} Na5 {[%emt 0:01:38]} 25. Nc1 {[%emt 0:02:41]} Nc4 {[%emt 0:03:42]} 26. Nd3 {[%emt 0:00:18]} Na5 {[%emt 0:00:48]} 27. Qc2 {[%emt 0:01:32]} Nc6 {[%emt 0:01:59]} 28. Bf2 {[%emt 0:02:19]} Na5 {[%emt 0:01:11]} 29. Rfe1 {[%emt 0:00:14]} Nc6 {[%emt 0:00:56]} 30. Nb4 {[%emt 0:01:43]} Nxb4 {[%emt 0:01:13]} 31. axb4 {[%emt 0:00:08]} Nb6 {[%emt 0:02:02]} 32. Bd4 {[%emt 0:00:45]} Bh6 {[%emt 0:01:20]} 33. g5 {[%emt 0:01:00]} Bg7 {[%emt 0:00:34]} 34. b3 {[%emt 0:00:31]} Nd7 {[%emt 0:01:09]} 35. Ra1 {[%emt 0:00:22]} Ra8 {[%emt 0:00:30]} 36. Ra5 {[%emt 0:01:01]} Nb8 {[%emt 0:01:22]} 37. Bc5 {[%emt 0:00:15]} Rc8 {[%emt 0:01:28]} 38. Rea1 {[%emt 0:00:35]} Qb7 {[%emt 0:00:47]} 39. Qf2 {[%emt 0:01:20]} Nc6 {[%emt 0:00:42]} 40. R5a2 {[%emt 0:00:18]} Bf8 {[%emt 0:00:32]} 41. Bxf8 {[%emt 0:00:46]} Kxf8 {[%emt 0:00:18]} 42. Qc5+ {[%emt 0:00:37]} Ne7 {[%emt 0:01:05]} 43. Qe3 {[%emt 0:00:44]} Nf5 {[%emt 0:01:19]} 44. Qe1 {[%emt 0:00:28]} Rc6 {[%emt 0:01:26]} 45. Rd1 {[%emt 0:03:06]} Qb6 {[%emt 0:00:23]} 46. Rd3 {[%emt 0:01:05]} Rac8 {[%emt 0:01:21]} 47. Bg4 {[%emt 0:00:38]} Ne7 {[%emt 0:01:34]} 48. h4 {[%emt 0:00:30]} Qb7 {[%emt 0:00:22]} 49. Kh3 {[%emt 0:00:37]} Qb6 {[%emt 0:00:28]} 50. h5 {[%emt 0:00:30]} Qc7 {[%emt 0:00:22]} 51. Rc2 {[%emt 0:00:28]} d4 {[%emt 0:00:44]} 52. Rxd4 {[%emt 0:01:51]} 1/2-1/2

[Event "LJ Slovak Open 2022"]
[Site "Liptovsky Jan"]
[Date "2022.06.23"]
[Round "1.35"]
[White "Carnecky, Michal"]
[Black "Harvan, Tomas"]
[Result "0-1"]
[ECO "A22"]
[WhiteElo "1361"]
[BlackElo "1853"]
[Annotator "NA RC"]
[PlyCount "50"]
[EventDate "2022.06.23"]
[EventType "swiss"]
[EventCountry "SVK"]
[SourceTitle "playchess.com"]
[Source "ChessBase"]
[SourceQuality "1"]
[TimeControl "3600+30"]

1. c4 {[%emt 0:00:08]} Nf6 {[%emt 0:00:10]} 2. Nc3 {[%emt 0:00:21]} e5 {[%emt 0:00:48]} 3. a3 {[%emt 0:01:06]} c6 {[%emt 0:01:11]} 4. d3 {[%emt 0:01:07]} d5 {[%emt 0:01:47]} 5. cxd5 {[%emt 0:00:45]} cxd5 {[%emt 0:00:09]} 6. e3 {[%emt 0:01:49]} Nc6 {[%emt 0:00:58]} 7. Nf3 {[%emt 0:01:10]} Bg4 {[%emt 0:01:40]} 8. Be2 {[%emt 0:00:36]} Be7 {[%emt 0:02:11]} 9. O-O {[%emt 0:03:06]} O-O {[%emt 0:00:39]} 10. Nd2 {[%emt 0:03:26]} Bxe2 {[%emt 0:02:50]} 11. Nxe2 {[%emt 0:01:16]} Qb6 {[%emt 0:01:38]} 12. b4 {[%emt 0:02:49]} Rac8 {[%emt 0:00:43]} 13. Bb2 {[%emt 0:00:20]} a5 {[%emt 0:00:54]} 14. Bc3 {[%emt 0:03:51]} axb4 {[%emt 0:01:48]} 15. axb4 {[%emt 0:00:45]} d4 {[%emt 0:07:37]} 16. Nc4 {[%emt 0:03:15]} Qd8 {[%emt 0:01:05]} 17. Be1 {[%emt 0:04:14]} dxe3 {[%emt 0:03:04]} 18. fxe3 {[%emt 0:00:20]} Bxb4 {[%emt 0:00:41]} 19. Bxb4 {[%emt 0:00:20]} Nxb4 {[%emt 0:00:08]} 20. Nxe5 {[%emt 0:03:55]} Nc2 {[%emt 0:01:08]} 21. Nc4 {[%emt 0:07:06]} Nxa1 {[%emt 0:00:41]} 22. Qxa1 {[%emt 0:00:13]} Qxd3 {[%emt 0:00:41]} 23. Rxf6 {[%emt 0:03:06]} gxf6 {[%emt 0:01:19]} 24. Qxf6 {[%emt 0:02:04]} Rxc4 {[%emt 0:02:12]} 25. Nf4 {[%emt 0:00:38]} Qxe3+ {[%emt 0:00:31]} 0-1